fUSD/lending_fUSD_20241128
["ID","MTS","AMOUNT","RATE_DAILY","PERIOD"]
[343644030,1732771832817,-890.21,9.989e-05,2]
[343644031,1732771832826,-500.0,9.989e-05,2]
[343644032,1732771832835,-500.0,9.989e-05,2]
[343644033,1732771832844,-121057.58047807,9.99e-05,2]
[343644034,1732771832856,-500.04139326,9.99e-05,2]
[343644035,1732771832867,-3457.49519897,9.99e-05,2]
[343644036,1732771832879,-1587.89459183,9.99e-05,2]
[343644037,1732771832891,-796.49060566,9.99e-05,2]
[343644038,1732771832908,-9740.99843709,9.99e-05,2]
[343644039,1732771832931,-383.13104217,9.99e-05,2]
[343644040,1732771833181,-422.50717792,9.99e-05,2]
[343644053,1732771838548,-1091.48419357,9.99e-05,2]
[343644069,1732771843735,-0.11857832,9.989e-05,2]
[343644071,1732771843998,-499.88142168,9.989e-05,2]
[343644072,1732771844232,-3463.86382713,9.99e-05,2]
[343644073,1732771844245,-15208.28971515,9.99e-05,2]
[343644074,1732771844261,-6672.41536417,9.99e-05,2]
[343644077,1732771879355,-78426.54897716,9.99e-05,2]
[343644078,1732771879365,-1088.85872553,9.993e-05,2]
[343644079,1732771879375,-159.009,9.995e-05,2]
[343644080,1732771879384,-2595.50530597,9.995e-05,2]
[343644081,1732771879394,-979.81068426,9.995e-05,2]
[343644082,1732771879405,-2595.50530595,9.996e-05,2]
[343644083,1732771879414,-152.423673,9.996e-05,2]
[343644084,1732771879424,-2595.50530595,9.996e-05,2]
[343644085,1732771879434,-2595.50530595,9.997e-05,2]
[343644086,1732771879444,-2595.50530595,9.997e-05,2]
[343644087,1732771879453,-979.81068426,9.998e-05,2]
[343644088,1732771879463,-2595.50530595,9.998e-05,2]
[343644089,1732771879473,-152.423673,9.998e-05,2]
[343644090,1732771879483,-152.423673,9.998e-05,2]
[343644091,1732771879496,-500.0,9.998e-05,2]
[343644092,1732771879506,-500.0,9.998e-05,2]
[343644093,1732771879515,-500.0,9.998e-05,2]
[343644094,1732771879525,-500.0,9.998e-05,2]
[343644095,1732771879534,-160.33363212,9.998e-05,2]
[343644096,1732771879544,-500.0,9.998e-05,2]
[343644097,1732771879553,-500.0,9.998e-05,2]
[343644098,1732771879563,-500.0,9.998e-05,2]
[343644099,1732771879572,-1694.890691,9.998e-05,2]
[343644100,1732771879582,-187.47,9.998e-05,2]
[343644101,1732771879592,-1088.85872553,9.998e-05,2]
[343644102,1732771879601,-2595.50530595,9.998e-05,2]
[343644103,1732771879611,-2595.50530595,9.999e-05,2]
[343644104,1732771879621,-55400.21278968,9.999e-05,2]
[343644105,1732771879630,-358.06814299,9.999e-05,2]
[343644106,1732771879639,-152.423673,9.999e-05,2]
[343644107,1732771879649,-152.423673,9.999e-05,2]
[343644108,1732771879659,-152.423673,9.999e-05,2]
[343644109,1732771879669,-500.0,9.999e-05,2]
[343644110,1732771879679,-500.0,9.999e-05,2]
[343644111,1732771879688,-500.0,9.999e-05,2]
[343644112,1732771879699,-500.0,9.999e-05,2]
[343644113,1732771879709,-500.0,9.999e-05,2]
[343644114,1732771879719,-500.0,9.999e-05,2]
[343644115,1732771879729,-500.0,9.999e-05,2]
[343644116,1732771879752,-500.0,9.999e-05,2]
[343644117,1732771879763,-500.0,9.999e-05,2]
[343644118,1732771879772,-500.0,9.999e-05,2]
[343644119,1732771879782,-500.0,9.999e-05,2]
[343644120,1732771879793,-500.0,9.999e-05,2]
[343644121,1732771879802,-500.0,9.999e-05,2]
[343644122,1732771879811,-500.0,9.999e-05,2]
[343644123,1732771879822,-646.74778266,9.999e-05,2]
[343644124,1732771879832,-500.0,9.999e-05,2]
[343644125,1732771879843,-500.0,9.999e-05,2]
[343644126,1732771879857,-500.0,9.999e-05,2]
[343644127,1732771879869,-497.05237962,9.999e-05,2]
[343644128,1732771879878,-572.86403781,9.999e-05,2]
[343644129,1732771879887,-500.0,9.999e-05,2]
[343644130,1732771879897,-500.0,9.999e-05,2]
[343644131,1732771879906,-500.0,9.999e-05,2]
[343644132,1732771879916,-444.93538464,9.999e-05,2]
[343644133,1732771879926,-890.21,9.999e-05,2]
[343644134,1732771879935,-890.21,9.999e-05,2]
[343644135,1732771879944,-890.21,9.999e-05,2]
[343644136,1732771879953,-890.21,9.999e-05,2]
[343644137,1732771879963,-890.21,9.999e-05,2]
[343644138,1732771879972,-890.21,9.999e-05,2]
[343644139,1732771879982,-890.21,9.999e-05,2]
[343644140,1732771879992,-890.21,9.999e-05,2]
[343644141,1732771880002,-890.21,9.999e-05,2]
[343644142,1732771880011,-890.21,9.999e-05,2]
[343644143,1732771880021,-890.21,9.999e-05,2]
[343644144,1732771880030,-890.21,9.999e-05,2]
[343644145,1732771880040,-890.21,9.999e-05,2]
[343644146,1732771880050,-890.21,9.999e-05,2]
[343644147,1732771880060,-890.21,9.999e-05,2]
[343644148,1732771880069,-890.21,9.999e-05,2]
[343644149,1732771880079,-890.21,9.999e-05,2]
[343644150,1732771880088,-890.21,9.999e-05,2]
[343644151,1732771880098,-890.21,9.999e-05,2]
[343644152,1732771880113,-890.21,9.999e-05,2]
[343644153,1732771880122,-890.21,9.999e-05,2]
[343644154,1732771880131,-890.21,9.999e-05,2]
[343644155,1732771880141,-890.23204671,9.999e-05,2]
[343644156,1732771880151,-500.0,9.999e-05,2]
[343644157,1732771880160,-167.96472591,9.999e-05,2]
[343644158,1732771880170,-3756.0,9.999e-05,2]
[343644159,1732771880180,-816.0,9.999e-05,2]
[343644160,1732771880190,-1263.0,9.999e-05,2]
[343644161,1732771880201,-534.0,9.999e-05,2]
[343644162,1732771880211,-150.0,9.999e-05,2]
[343644163,1732771880221,-633.0,9.999e-05,2]
[343644164,1732771880232,-630.0,9.999e-05,2]
[343644165,1732771880243,-2595.50530595,9.999e-05,2]
[343644166,1732771880252,-936563.62881251,9.999e-05,2]
[343644167,1732771880263,-14745.69485131,9.999e-05,2]
[343644168,1732771880273,-1046.8606025,0.0001,2]
[343644169,1732771880282,-1046.86060245,0.0001,2]
[343644170,1732771880291,-1046.86060245,0.0001,2]
[343644171,1732771880301,-1046.86060245,0.0001,2]
[343644172,1732771880311,-1046.86060245,0.0001,2]
[343644173,1732771880320,-1046.86060245,0.0001,2]
[343644174,1732771880329,-1046.86060245,0.0001,2]
[343644175,1732771880338,-1046.86060245,0.0001,2]
[343644176,1732771880348,-1046.86060245,0.0001,2]
[343644177,1732771880357,-926837.66402876,0.0001,2]
[343644178,1732771880366,-600.0,0.0001,2]
[343644179,1732771880376,-150.0,0.0001,2]
[343644180,1732771880385,-150.0,0.0001,2]
[343644181,1732771880395,-8469.21276918,0.0001,2]
[343644182,1732771880405,-2881418.10529049,0.0001,2]
[343644183,1732772283829,150.0,9.998e-05,60]
[343644184,1732772339895,350.3,7.2e-05,2]
[343644201,1732773038371,-1076.95101839,8.219e-05,2]
[343644202,1732773038600,-502.04898161,8.219e-05,2]
[343644203,1732773038613,-1001.2658034,8.219e-05,2]
[343644204,1732773038625,-342.53466005,8.509e-05,2]
[343644205,1732773040704,-366.20571851,8.509e-05,2]
[343644206,1732773043423,-346.25962144,8.509e-05,2]
[343644207,1732773043434,-163.03,8.719e-05,2]
[343644208,1732773043443,-679.41769844,8.722e-05,2]
[343644209,1732773043590,-1000.23666928,8.722e-05,2]
[343644210,1732773043649,-177.09563228,8.722e-05,2]
[343644211,1732773043658,-300.0,8.737e-05,2]
[343644212,1732773043668,-1895.18083579,8.738e-05,2]
[343644228,1732773590894,7802.24363,0.00021,120]
[343644229,1732773690928,198.0,7.2e-05,2]
[343644230,1732773910002,335.0,0.000187,45]
[343644244,1732774231873,-1524.11,8.219e-05,2]
[343644245,1732774231882,-456.22392315,8.539e-05,2]
[343644246,1732774231892,-646.12,8.54e-05,2]
[343644247,1732774231901,-1500.0,8.553e-05,2]
[343644248,1732774231910,-456.22392315,8.553e-05,2]
[343644249,1732774231920,-250.0,8.553e-05,2]
[343644250,1732774231930,-300.0,8.561e-05,2]
[343644251,1732774231939,-250.0,8.561e-05,2]
[343644252,1732774231949,-250.0,8.563e-05,2]
[343644253,1732774231959,-652.0410537,8.57e-05,2]
[343644254,1732774231971,-657.0589463,8.57e-05,2]
[343644255,1732774231980,-1704.53,8.572e-05,2]
[343644256,1732774231990,-378.05,8.573e-05,2]
[343644257,1732774231999,-3120.81,8.574e-05,2]
[343644258,1732774232008,-1000.0,8.582e-05,2]
[343644259,1732774232017,-1404.67582148,8.585e-05,2]
[343644265,1732774237751,-480.74,8.585e-05,2]
[343644266,1732774237878,-1462.27417852,8.585e-05,2]
[343644267,1732774237887,-8860.09,8.586e-05,2]
[343644268,1732774237896,-289.13,8.595e-05,2]
[343644269,1732774237905,-2951.22,8.6e-05,2]
[343644270,1732774237915,-455.93,8.614e-05,2]
[343644271,1732774237925,-2640.01,8.629e-05,2]
[343644272,1732774237934,-387.43,8.646e-05,2]
[343644273,1732774237946,-9706.79533354,8.656e-05,2]
[343644281,1732774239676,-3011.517,8.656e-05,2]
[343644282,1732774239688,-2439.50133235,8.656e-05,2]
[343644283,1732774239714,-3774.14061128,8.656e-05,2]
[343644286,1732774242538,-3019.24101364,8.656e-05,2]
[343644287,1732774242637,-1948.80470919,8.656e-05,2]
[343644288,1732774242647,-163.12,8.691e-05,2]
[343644289,1732774242656,-150.0,8.702e-05,2]
[343644290,1732774242666,-150.0,8.849e-05,2]
[343644291,1732774242676,-164.5745617,8.905e-05,2]
[343644298,1732774245552,-50.6154383,8.905e-05,2]
[343644299,1732774245563,-172.3,8.916e-05,2]
[343644300,1732774245573,-434.26025357,8.956e-05,2]
[343644301,1732774245585,-620.73974643,8.956e-05,2]
[343644302,1732774245594,-427.70228517,9.034e-05,2]
[343644303,1732774245604,-421.0,9.227e-05,2]
[343644304,1732774245613,-38.31459983,9.305e-05,2]
[343644305,1732774245635,-389.38768534,9.305e-05,2]
[343644306,1732774245645,-1000.0,9.4e-05,2]
[343644307,1732774245655,-234.55431466,9.428e-05,2]
[343644308,1732774245785,-820.44568534,9.428e-05,2]
[343644309,1732774245795,-427.70228517,9.477e-05,2]
[343644310,1732774245804,-255.0,9.572e-05,2]
[343644311,1732774245814,-470.2,9.589e-05,2]
[343644312,1732774245823,-411.82,9.589e-05,2]
[343644313,1732774245832,-400.0,9.589e-05,2]
[343644314,1732774245842,-15.90262188,9.655e-05,2]
[343644315,1732774245853,-292.29160126,9.655e-05,2]
[343644317,1732774245878,-373.18419132,9.655e-05,2]
[343644321,1732774854223,-247.89,0.00016658,30]
[343644322,1732774854258,-247.89,0.00019242,30]
[343644327,1732775320622,223.1,0.00016658,30]
[343644328,1732775321211,223.1,0.00019242,30]
[343644336,1732775361652,-1447.9,8.219e-05,2]
[343644337,1732775361674,-250.0,8.808e-05,2]
[343644338,1732775361696,-250.0,8.813e-05,2]
[343644339,1732775361717,-1500.0,8.816e-05,2]
[343644340,1732775361739,-300.0,8.817e-05,2]
[343644341,1732775361760,-312.1,8.818e-05,2]
[343644354,1732775431938,-295.56834924,8.818e-05,2]
[343644364,1732775437740,-3009.77491826,8.818e-05,2]
[343644365,1732775437777,-1637.08491969,8.818e-05,2]
[343644367,1732775439836,-2909.10618,8.818e-05,2]
[343644368,1732775439860,-5625.23391996,8.818e-05,2]
[343644385,1732775442821,-5416.64754699,8.818e-05,2]
[343644404,1732775445685,-4694.48416586,8.818e-05,2]
[343644406,1732775445695,-1000.0,8.818e-05,2]
[343644408,1732775445705,-654.55,8.819e-05,2]
[343644410,1732775445714,-250.0,8.82e-05,2]
[343644411,1732775445724,-172.15,8.869e-05,2]
[343644412,1732775445733,-823.21,9.589e-05,2]
[343644413,1732775445742,-400.0,9.589e-05,2]
[343644414,1732775445752,-150.0,9.726e-05,2]
[343644415,1732775445761,-823.21,9.726e-05,2]
[343644416,1732775445771,-387.43,9.727e-05,2]
[343644417,1732775445781,-150.0,9.731e-05,2]
[343644418,1732775445790,-150.0,9.74e-05,2]
[343644419,1732775445800,-150.0,9.741e-05,2]
[343644420,1732775445809,-1500.0,9.742e-05,2]
[343644421,1732775445819,-151.1,9.75e-05,2]
[343644422,1732775445830,-150.0,9.75e-05,2]
[343644423,1732775445840,-150.0,9.75e-05,2]
[343644424,1732775445849,-150.0,9.753e-05,2]
[343644425,1732775445859,-150.0,9.756e-05,2]
[343644426,1732775445869,-150.0,9.756e-05,2]
[343644427,1732775445878,-150.0,9.756e-05,2]
[343644428,1732775445889,-150.0,9.759e-05,2]
[343644429,1732775445901,-150.0,9.76e-05,2]
[343644430,1732775445911,-150.0,9.761e-05,2]
[343644431,1732775445921,-150.0,9.766e-05,2]
[343644432,1732775445931,-150.0,9.768e-05,2]
[343644433,1732775445940,-150.0,9.77e-05,2]
[343644434,1732775445951,-150.0,9.772e-05,2]
[343644435,1732775445960,-150.0,9.772e-05,2]
[343644436,1732775445970,-150.0,9.774e-05,2]
[343644437,1732775445979,-150.0,9.778e-05,2]
[343644438,1732775445989,-150.0,9.779e-05,2]
[343644439,1732775445999,-150.0,9.783e-05,2]
[343644440,1732775446008,-150.0,9.783e-05,2]
[343644441,1732775446018,-150.0,9.785e-05,2]
[343644442,1732775446027,-150.0,9.789e-05,2]
[343644443,1732775446036,-150.0,9.796e-05,2]
[343644444,1732775446046,-150.0,9.796e-05,2]
[343644445,1732775446056,-150.0,9.797e-05,2]
[343644446,1732775446065,-2500.0,9.798e-05,2]
[343644447,1732775446075,-6254.43452133,9.799e-05,2]
[343644448,1732775446087,-246.35697867,9.799e-05,2]
[343644449,1732775446096,-150.0,9.799e-05,2]
[343644450,1732775446105,-150.0,9.805e-05,2]
[343644451,1732775446115,-910.66559793,9.808e-05,2]
[343644452,1732775446127,-589.33440207,9.808e-05,2]
[343644453,1732775446138,-150.0,9.811e-05,2]
[343644454,1732775446148,-150.0,9.815e-05,2]
[343644455,1732775446158,-150.0,9.816e-05,2]
[343644456,1732775446168,-50.2808441,9.817e-05,2]
[343644457,1732775446211,-150.0,9.733e-05,2]
[343644458,1732775446221,-237.68972956,9.817e-05,2]
[343644459,1732775446230,-150.0,9.82e-05,2]
[343644460,1732775446240,-150.0,9.82e-05,2]
[343644461,1732775446250,-49.56827044,9.825e-05,2]
[343644469,1732776034584,200.79,0.00016658,30]
[343644470,1732776034914,200.79,0.00019242,30]
[343644473,1732776468054,150.0,0.00019242,30]
[343644474,1732776473300,186.25190345,0.00019242,30]
[343644475,1732776479449,150.0,0.00019242,30]
[343644523,1732776632534,-1473.55,8.219e-05,2]
[343644524,1732776632546,-300.0,8.782e-05,2]
[343644525,1732776632555,-850.42115886,8.783e-05,2]
[343644526,1732776632565,-1741.02343617,8.783e-05,2]
[343644527,1732776632576,-1912.99836,8.783e-05,2]
[343644731,1732776640031,-406.24944498,8.783e-05,2]
[343644732,1732776640042,-18408.2958663,8.783e-05,2]
[343644733,1732776640053,-1431.43289255,8.783e-05,2]
[343644734,1732776640062,-211.22240199,8.783e-05,2]
[343644735,1732776640074,-38.77759801,8.783e-05,2]
[343644736,1732776640084,-799.28180197,8.818e-05,2]
[343644737,1732776640094,-200.71819803,8.818e-05,2]
[343644738,1732776640104,-388.79,8.843e-05,2]
[343644739,1732776640113,-250.0,8.845e-05,2]
[343644740,1732776640124,-587.95,8.851e-05,2]
[343644741,1732776640132,-164.52,8.851e-05,2]
[343644742,1732776640141,-165.59,8.865e-05,2]
[343644743,1732776640151,-407.26,8.868e-05,2]
[343644744,1732776640160,-1500.0,8.874e-05,2]
[343644745,1732776640170,-737.45,8.978e-05,2]
[343644746,1732776640179,-176.84,8.978e-05,2]
[343644747,1732776640188,-168.13,8.978e-05,2]
[343644748,1732776640197,-1000.0,9e-05,2]
[343644749,1732776640206,-173.67,9.144e-05,2]
[343644750,1732776640215,-713.44,9.589e-05,2]
[343644751,1732776640224,-400.0,9.589e-05,2]
[343644752,1732776640232,-503.18029757,9.606e-05,2]
[343644753,1732776640244,-1767.81970243,9.606e-05,2]
[343644754,1732776640258,-420.0,9.66e-05,2]
[343644755,1732776640267,-500.0,9.699e-05,2]
[343644756,1732776640277,-150.0,9.706e-05,2]
[343644757,1732776640478,-150.0,9.707e-05,2]
[343644758,1732776640497,-150.0,9.71e-05,2]
[343644759,1732776640518,-150.0,9.718e-05,2]
[343644760,1732776640527,-55.52529757,9.724e-05,2]
[343644761,1732776640540,-94.47470243,9.724e-05,2]
[343644762,1732776640550,-713.44,9.726e-05,2]
[343644763,1732776640559,-150.0,9.728e-05,2]
[343644764,1732776640569,-150.0,9.739e-05,2]
[343644765,1732776640578,-150.0,9.74e-05,2]
[343644766,1732776640587,-785.68529757,9.743e-05,2]
[343644769,1732776644636,-714.31470243,9.743e-05,2]
[343644770,1732776644646,-150.0,9.744e-05,2]
[343644771,1732776644655,-150.0,9.744e-05,2]
[343644772,1732776644665,-150.0,9.745e-05,2]
[343644773,1732776644674,-150.0,9.745e-05,2]
[343644774,1732776644684,-150.0,9.745e-05,2]
[343644775,1732776644693,-150.0,9.746e-05,2]
[343644776,1732776644703,-150.0,9.755e-05,2]
[343644777,1732776644711,-150.0,9.757e-05,2]
[343644778,1732776644720,-1500.0,9.758e-05,2]
[343644779,1732776644729,-150.0,9.759e-05,2]
[343644780,1732776644738,-150.0,9.762e-05,2]
[343644781,1732776644747,-150.0,9.767e-05,2]
[343644782,1732776644757,-150.0,9.768e-05,2]
[343644783,1732776644766,-53.80216757,9.771e-05,2]
[343644784,1732776644791,-96.19783243,9.771e-05,2]
[343644785,1732776644800,-150.0,9.773e-05,2]
[343644786,1732776644810,-150.0,9.775e-05,2]
[343644787,1732776644819,-150.0,9.779e-05,2]
[343644788,1732776644827,-150.0,9.788e-05,2]
[343644789,1732776644836,-150.0,9.79e-05,2]
[343644790,1732776644845,-150.0,9.791e-05,2]
[343644791,1732776644854,-150.89135186,9.792e-05,2]
[343644792,1732776644890,-150.0,9.778e-05,2]
[343644793,1732776644899,-1349.10864814,9.792e-05,2]
[343644794,1732776644908,-150.0,9.793e-05,2]
[343644795,1732776644917,-150.0,9.793e-05,2]
[343644796,1732776644927,-1531.4459,9.796e-05,2]
[343644797,1732776644936,-3371.80545186,9.796e-05,2]
[343644798,1732776644993,-150.0,9.733e-05,2]
[343644799,1732776645003,-12828.96624814,9.796e-05,2]
[343644800,1732776645012,-150.0,9.798e-05,2]
[343644801,1732776645022,-150.0,9.809e-05,2]
[343644802,1732776645032,-150.0,9.81e-05,2]
[343644803,1732776645041,-150.0,9.811e-05,2]
[343644804,1732776645050,-150.0,9.813e-05,2]
[343644805,1732776645060,-150.0,9.815e-05,2]
[343644806,1732776645069,-150.0,9.82e-05,2]
[343644807,1732776645078,-150.0,9.821e-05,2]
[343644808,1732776645087,-300.0,9.821e-05,2]
[343644809,1732776645096,-150.0,9.822e-05,2]
[343644811,1732776645105,-150.01,9.824e-05,2]
[343644812,1732776645115,-480.34784782,9.824e-05,2]
[343644814,1732776645127,-100.43172956,9.825e-05,2]
[343644816,1732776645136,-150.0,9.829e-05,2]
[343644818,1732776645146,-150.0,9.83e-05,2]
[343644820,1732776645155,-150.0,9.837e-05,2]
[343644822,1732776645164,-150.0,9.838e-05,2]
[343644824,1732776645173,-150.0,9.838e-05,2]
[343644826,1732776645183,-150.0,9.839e-05,2]
[343644829,1732776645192,-150.0,9.839e-05,2]
[343644832,1732776645202,-150.0,9.844e-05,2]
[343644835,1732776645211,-150.0,9.846e-05,2]
[343644837,1732776645220,-150.0,9.846e-05,2]
[343644839,1732776645229,-150.0,9.846e-05,2]
[343644841,1732776645238,-150.0,9.852e-05,2]
[343644843,1732776645247,-150.0,9.853e-05,2]
[343644845,1732776645259,-150.0,9.853e-05,2]
[343644847,1732776645268,-150.0,9.854e-05,2]
[343644849,1732776645278,-150.0,9.856e-05,2]
[343644851,1732776645287,-150.0,9.858e-05,2]
[343644853,1732776645297,-150.0,9.858e-05,2]
[343644855,1732776645306,-150.0,9.859e-05,2]
[343644857,1732776645315,-150.0,9.86e-05,2]
[343644859,1732776645325,-713.44,9.863e-05,2]
[343644861,1732776645334,-1500.0,9.866e-05,2]
[343644862,1732776645344,-150.0,9.867e-05,2]
[343644864,1732776645353,-150.0,9.869e-05,2]
[343644866,1732776645362,-150.0,9.875e-05,2]
[343644868,1732776645374,-150.0,9.875e-05,2]
[343644870,1732776645383,-150.0,9.877e-05,2]
[343644872,1732776645393,-150.0,9.878e-05,2]
[343644874,1732776645402,-150.0,9.879e-05,2]
[343644875,1732776645411,-150.0,9.88e-05,2]
[343644876,1732776645421,-150.0,9.886e-05,2]
[343644877,1732776645431,-150.0,9.887e-05,2]
[343644878,1732776645441,-150.0,9.888e-05,2]
[343644879,1732776645451,-150.0,9.889e-05,2]
[343644880,1732776645460,-150.0,9.89e-05,2]
[343644881,1732776645469,-150.0,9.89e-05,2]
[343644882,1732776645478,-500.0,9.894e-05,2]
[343644883,1732776645487,-500.0,9.894e-05,2]
[343644884,1732776645496,-500.0,9.894e-05,2]
[343644885,1732776645505,-500.0,9.894e-05,2]
[343644886,1732776645515,-500.0,9.894e-05,2]
[343644887,1732776645524,-240.59,9.894e-05,2]
[343644888,1732776645533,-500.0,9.894e-05,2]
[343644889,1732776645545,-500.0,9.894e-05,2]
[343644890,1732776645554,-500.0,9.894e-05,2]
[343644891,1732776645564,-500.0,9.894e-05,2]
[343644892,1732776645573,-500.0,9.894e-05,2]
[343644893,1732776645583,-500.0,9.894e-05,2]
[343644894,1732776645592,-500.0,9.894e-05,2]
[343644895,1732776645601,-500.0,9.894e-05,2]
[343644896,1732776645611,-370.60927307,9.894e-05,2]
[343644897,1732776645620,-500.0,9.894e-05,2]
[343644898,1732776645632,-500.0,9.894e-05,2]
[343644899,1732776645641,-500.0,9.894e-05,2]
[343644900,1732776645650,-500.0,9.894e-05,2]
[343644901,1732776645659,-500.0,9.894e-05,2]
[343644902,1732776645669,-500.0,9.894e-05,2]
[343644903,1732776645678,-500.0,9.895e-05,2]
[343644904,1732776645687,-500.0,9.895e-05,2]
[343644905,1732776645696,-500.0,9.895e-05,2]
[343644906,1732776645706,-515.21635067,9.895e-05,2]
[343644907,1732776645715,-500.0,9.895e-05,2]
[343644908,1732776645725,-500.0,9.895e-05,2]
[343644909,1732776645734,-500.0,9.895e-05,2]
[343644910,1732776645744,-476.69817651,9.895e-05,2]
[343644911,1732776645754,-500.0,9.895e-05,2]
[343644912,1732776645763,-500.0,9.895e-05,2]
[343644913,1732776645773,-500.0,9.895e-05,2]
[343644914,1732776645786,-500.0,9.895e-05,2]
[343644915,1732776645796,-198.758598,9.895e-05,2]
[343644916,1732776645806,-198.758598,9.895e-05,2]
[343644917,1732776645816,-198.758598,9.895e-05,2]
[343644918,1732776645826,-198.758598,9.895e-05,2]
[343644919,1732776645835,-198.758598,9.895e-05,2]
[343644920,1732776645844,-198.758598,9.895e-05,2]
[343644921,1732776645854,-500.0,9.895e-05,2]
[343644922,1732776645863,-500.0,9.895e-05,2]
[343644923,1732776645874,-500.0,9.895e-05,2]
[343644924,1732776645883,-500.0,9.895e-05,2]
[343644925,1732776645893,-500.0,9.895e-05,2]
[343644926,1732776645903,-500.0,9.895e-05,2]
[343644927,1732776645912,-500.0,9.895e-05,2]
[343644928,1732776645921,-500.0,9.895e-05,2]
[343644929,1732776645931,-1500.0,9.895e-05,2]
[343644930,1732776645940,-500.0,9.895e-05,2]
[343644931,1732776645949,-500.0,9.895e-05,2]
[343644932,1732776645959,-500.0,9.895e-05,2]
[343644933,1732776645968,-500.0,9.895e-05,2]
[343644934,1732776645977,-500.0,9.895e-05,2]
[343644935,1732776645987,-503.64387005,9.895e-05,2]
[343644936,1732776645996,-500.0,9.895e-05,2]
[343644937,1732776646005,-500.0,9.895e-05,2]
[343644938,1732776646014,-500.0,9.895e-05,2]
[343644939,1732776646023,-347.16146993,9.895e-05,2]
[343644940,1732776646032,-500.0,9.895e-05,2]
[343644941,1732776646041,-500.0,9.895e-05,2]
[343644942,1732776646051,-500.0,9.895e-05,2]
[343644943,1732776646060,-500.0,9.895e-05,2]
[343644944,1732776646069,-500.0,9.895e-05,2]
[343644945,1732776646078,-500.0,9.895e-05,2]
[343644946,1732776646087,-500.0,9.895e-05,2]
[343644947,1732776646096,-507.7456309,9.895e-05,2]
[343644948,1732776646105,-500.0,9.895e-05,2]
[343644949,1732776646115,-150.0,9.895e-05,2]
[343644950,1732776646126,-151.0,9.896e-05,2]
[343644951,1732776646135,-151.0,9.897e-05,2]
[343644952,1732776646144,-198.758598,9.897e-05,2]
[343644953,1732776646153,-198.758598,9.897e-05,2]
[343644954,1732776646162,-150.0,9.898e-05,2]
[343644955,1732776646171,-150.0,9.898e-05,2]
[343644956,1732776646180,-150.0,9.898e-05,2]
[343644957,1732776646190,-150.0,9.898e-05,2]
[343644958,1732776646200,-150.0,9.898e-05,2]
[343644959,1732776646209,-150.0,9.898e-05,2]
[343644960,1732776646218,-150.0,9.898e-05,2]
[343644961,1732776646227,-150.0,9.898e-05,2]
[343644962,1732776646237,-150.0,9.898e-05,2]
[343644963,1732776646246,-150.0,9.898e-05,2]
[343644964,1732776646257,-151.0,9.898e-05,2]
[343644965,1732776646266,-198.758598,9.898e-05,2]
[343644966,1732776646275,-198.758598,9.898e-05,2]
[343644967,1732776646285,-173.67,9.898e-05,2]
[343644968,1732776646294,-1009.0,9.9e-05,2]
[343644969,1732776646304,-1000.0,9.9e-05,2]
[343644970,1732776646313,-1000.0,9.9e-05,2]
[343644971,1732776646323,-1000.0,9.9e-05,2]
[343644972,1732776646333,-1000.0,9.9e-05,2]
[343644973,1732776646342,-1000.0,9.9e-05,2]
[343644974,1732776646351,-634.0,9.9e-05,2]
[343644975,1732776646360,-612.0,9.9e-05,2]
[343644976,1732776646376,-1000.0,9.9e-05,2]
[343644977,1732776646386,-293.3993439,9.9e-05,2]
[343644978,1732776646395,-198.758598,9.9e-05,2]
[343644979,1732776646405,-198.758598,9.9e-05,2]
[343644980,1732776646414,-198.758598,9.9e-05,2]
[343644981,1732776646423,-198.758598,9.9e-05,2]
[343644982,1732776646434,-150.0,9.9e-05,2]
[343644983,1732776646443,-2500.0,9.9e-05,2]
[343644984,1732776646452,-2135.13139875,9.9e-05,2]
[343644985,1732776646461,-150.0,9.904e-05,2]
[343644986,1732776646470,-150.0,9.904e-05,2]
[343644987,1732776646479,-150.0,9.907e-05,2]
[343644988,1732776646488,-150.0,9.913e-05,2]
[343644989,1732776646497,-150.0,9.916e-05,2]
[343644990,1732776646507,-150.0,9.92e-05,2]
[343644991,1732776646515,-1000.0,9.921e-05,2]